fUSD/lending_fUSD_20260202
["ID","MTS","AMOUNT","RATE_DAILY","PERIOD"]
[404345783,1770070277256,-172.53,0.00040367,2]
[404345784,1770070277266,-1233.94,0.00040367,2]
[404345785,1770070277277,-150.0,0.00040377,7]
[404345786,1770070277288,-350.0,0.00040396,5]
[404345787,1770070277299,-150.0,0.00040398,7]
[404345788,1770070277310,-150.0,0.00040398,7]
[404345789,1770070277320,-150.0,0.00040418,7]
[404345790,1770070277329,-150.0,0.0004043,7]
[404345791,1770070277339,-150.0,0.00040435,7]
[404345792,1770070277348,-150.0,0.00040461,7]
[404345793,1770070277357,-150.0,0.00040469,7]
[404345794,1770070277367,-150.0,0.0004048,7]
[404345795,1770070277376,-150.0,0.00040484,7]
[404345796,1770070277387,-250.0,0.000405,45]
[404345797,1770070277398,-250.0,0.000405,45]
[404345798,1770070277409,-250.0,0.000405,45]
[404345799,1770070277418,-250.0,0.000405,45]
[404345800,1770070277429,-250.0,0.000405,45]
[404345801,1770070277439,-150.0,0.00040518,7]
[404345802,1770070277448,-150.0,0.00040537,7]
[404345803,1770070277458,-1086.56,0.00040547,120]
[404345804,1770070277468,-600.0,0.00040548,2]
[404345805,1770070277478,-150.0,0.00040588,7]
[404345806,1770070277487,-150.0,0.00040591,7]
[404345807,1770070277496,-150.0,0.00040618,7]
[404345808,1770070277505,-150.0,0.00040618,7]
[404345809,1770070277514,-150.0,0.00040618,7]
[404345810,1770070277524,-150.0,0.00040618,7]
[404345811,1770070277534,-150.0,0.00040618,7]
[404345812,1770070277543,-150.0,0.00040618,7]
[404345813,1770070277552,-616.0,0.00040637,2]
[404345814,1770070277562,-1334.0,0.00040637,2]
[404345815,1770070277573,-150.0,0.00040644,7]
[404345816,1770070277582,-1410.0,0.00040664,2]
[404345817,1770070277593,-1271.0,0.00040664,2]
[404345818,1770070277603,-1205.0,0.00040674,2]
[404345819,1770070277612,-917.0,0.00040674,2]
[404345820,1770070277622,-2445.0,0.00040674,2]
[404345821,1770070277632,-6579.0,0.00040674,2]
[404345822,1770070277642,-3253.0,0.00040674,2]
[404345823,1770070277651,-150.0,0.00040698,7]
[404345824,1770070277660,-153.0,0.000407,120]
[404345825,1770070277670,-150.0,0.00040707,7]
[404345826,1770070277679,-150.0,0.00040717,7]
[404345827,1770070277689,-503.0,0.00040726,22]
[404345828,1770070277698,-150.0,0.00040752,7]
[404345829,1770070277707,-150.0,0.00040755,7]
[404345830,1770070277717,-150.0,0.00040775,7]
[404345831,1770070277726,-150.0,0.00040775,7]
[404345832,1770070277735,-150.0,0.00040801,7]
[404345833,1770070277744,-150.0,0.00040805,7]
[404345834,1770070277754,-150.0,0.00040817,7]
[404345835,1770070277763,-150.0,0.00040825,7]
[404345836,1770070277772,-1000.0,0.00040834,2]
[404345837,1770070277781,-150.0,0.00040837,7]
[404345838,1770070277791,-150.0,0.00040837,7]
[404345839,1770070277801,-150.0,0.00040859,7]
[404345840,1770070277810,-150.0,0.00040892,7]
[404345841,1770070277820,-151.0,0.000409,120]
[404345842,1770070277829,-150.0,0.00040912,7]
[404345843,1770070277839,-150.0,0.00040917,7]
[404345844,1770070277848,-150.0,0.00040931,7]
[404345845,1770070277858,-450.0,0.00040944,5]
[404345846,1770070277867,-150.0,0.00040944,7]
[404345847,1770070277876,-150.0,0.00040966,7]
[404345848,1770070277887,-150.0,0.00040984,7]
[404345849,1770070277896,-150.0,0.00040984,7]
[404345850,1770070277906,-150.0,0.00040984,7]
[404345851,1770070277915,-150.0,0.00040984,7]
[404345852,1770070277925,-7606.53299902,0.00040998,2]
[404345853,1770070277934,-250.0,0.00040999,45]
[404345854,1770070277944,-250.0,0.00040999,45]
[404345855,1770070277953,-151.0,0.00040999,45]
[404345856,1770070277962,-500.0,0.00040999,45]
[404345857,1770070277972,-187.78006525,0.00040999,45]
[404345858,1770070277982,-151.0,0.00040999,45]
[404345859,1770070277991,-500.0,0.00040999,45]
[404345860,1770070278001,-500.0,0.00040999,45]
[404345861,1770070278010,-1280.88388878,0.00040999,45]
[404345862,1770070278020,-160.0,0.00040999,45]
[404345863,1770070278029,-250.0,0.00040999,45]
[404345864,1770070278037,-187.78006525,0.00040999,45]
[404345865,1770070278047,-646.65982734,0.00040999,45]
[404345866,1770070278056,-500.0,0.00040999,45]
[404345867,1770070278066,-771.01748645,0.00040999,45]
[404345868,1770070278075,-500.0,0.00040999,45]
[404345869,1770070278084,-250.0,0.00040999,45]
[404345870,1770070278093,-187.78006525,0.00040999,45]
[404345871,1770070278102,-224.10167046,0.00041,2]
[404345872,1770070278111,-500.0,0.00041,30]
[404345873,1770070278122,-250.0,0.00041,45]
[404345874,1770070278132,-164.4,0.00041,120]
[404345875,1770070278141,-612.80285371,0.00041,30]
[404345876,1770070278151,-250.0,0.00041,45]
[404345877,1770070278160,-250.0,0.00041,45]
[404345878,1770070278169,-250.0,0.00041,45]
[404345879,1770070278179,-250.0,0.00041,45]
[404345880,1770070278188,-173.0,0.00041,90]
[404345881,1770070278197,-150.0,0.00041017,7]
[404345882,1770070278207,-150.0,0.00041019,7]
[404345883,1770070278216,-150.0,0.00041029,7]
[404345884,1770070278225,-150.0,0.00041057,7]
[404345885,1770070278240,-118665.12837977,0.00041059,2]
[404345886,1770070278249,-151.0,0.00041059,120]
[404345887,1770070278259,-151.0,0.00041059,120]
[404345888,1770070278270,-151.0,0.00041059,120]
[404345889,1770070278279,-227.04968,0.00041059,120]
[404345890,1770070278289,-151.0,0.00041059,120]
[404345891,1770070278298,-219.595089,0.00041059,120]
[404345892,1770070278309,-151.0,0.00041059,120]
[404345893,1770070278319,-151.0,0.00041059,120]
[404345894,1770070278328,-151.0,0.00041059,120]
[404345895,1770070278337,-151.0,0.00041059,120]
[404345896,1770070278346,-151.0,0.00041059,120]
[404345897,1770070278356,-239.700332,0.00041059,120]
[404345898,1770070278365,-151.0,0.00041059,120]
[404345899,1770070278374,-151.0,0.00041059,120]
[404345900,1770070278383,-151.0,0.00041059,120]
[404345901,1770070278392,-151.0,0.00041059,120]
[404345902,1770070278401,-198.031669,0.00041059,120]
[404345903,1770070278411,-264.218956,0.00041059,120]
[404345904,1770070278421,-151.0,0.00041059,120]
[404345905,1770070278431,-151.0,0.00041059,120]
[404345906,1770070278440,-151.0,0.00041059,120]
[404345907,1770070278450,-151.0,0.00041059,120]
[404345908,1770070278459,-225.384834,0.00041059,120]
[404345909,1770070278469,-151.0,0.00041059,120]
[404345910,1770070278478,-151.0,0.00041059,120]
[404345911,1770070278488,-151.0,0.00041059,90]
[404345912,1770070278498,-1304.106458,0.00041059,120]
[404345913,1770070278507,-151.0,0.00041059,120]
[404345914,1770070278516,-151.0,0.00041059,120]
[404345915,1770070278525,-1304.106458,0.00041059,120]
[404345916,1770070278535,-1304.106458,0.00041059,120]
[404345917,1770070278544,-151.0,0.00041059,120]
[404345918,1770070278553,-151.0,0.00041059,120]
[404345919,1770070278563,-150.0,0.00041063,7]
[404345920,1770070278573,-300.0,0.00041068,22]
[404345921,1770070278582,-150.0,0.00041073,7]
[404345922,1770070278592,-150.0,0.00041088,7]
[404345923,1770070278602,-250.0,0.00041095,30]
[404345924,1770070278612,-250.0,0.00041095,30]
[404345925,1770070278622,-151.0,0.00041095,30]
[404345926,1770070278631,-500.0,0.00041095,30]
[404345927,1770070278641,-181.08010149,0.00041095,30]
[404345928,1770070278651,-151.0,0.00041095,30]
[404345929,1770070278660,-500.0,0.00041095,30]
[404345930,1770070278670,-500.0,0.00041095,30]
[404345931,1770070278679,-1235.18214925,0.00041095,30]
[404345932,1770070278689,-160.0,0.00041095,30]
[404345933,1770070278699,-250.0,0.00041095,30]
[404345934,1770070278709,-181.08010149,0.00041095,30]
[404345935,1770070278718,-623.58710448,0.00041095,30]
[404345936,1770070278728,-500.0,0.00041095,30]
[404345937,1770070278737,-743.50770149,0.00041095,30]
[404345938,1770070278748,-500.0,0.00041095,30]
[404345939,1770070278757,-250.0,0.00041095,30]
[404345940,1770070278766,-181.08010149,0.00041095,30]
[404345941,1770070278776,-799.0,0.00041096,120]
[404345942,1770070278785,-506.21,0.00041096,120]
[404345943,1770070278795,-334.54,0.00041096,120]
[404345944,1770070278804,-191.0,0.00041096,30]
[404345945,1770070278813,-169.45176618,0.00041096,2]
[404345946,1770070278823,-150.0,0.00041096,2]
[404345947,1770070278833,-150.0,0.00041117,30]
[404345948,1770070278842,-150.0,0.00041126,30]
[404345949,1770070278852,-154.83932745,0.00041151,2]
[404345950,1770070278861,-150.0,0.00041167,30]
[404345951,1770070278871,-150.0,0.00041167,30]
[404345952,1770070278880,-150.0,0.0004118,30]
[404345953,1770070278890,-150.0,0.00041181,30]
[404345954,1770070278900,-150.0,0.00041186,30]
[404345955,1770070278909,-1233.94,0.00041189,30]
[404345956,1770070278919,-1233.94,0.00041189,30]
[404345957,1770070278928,-2457.39,0.00041189,30]
[404345958,1770070278937,-150.0,0.00041189,30]
[404345959,1770070278947,-500.0,0.00041203,60]
[404345960,1770070278956,-500.0,0.00041203,60]
[404345961,1770070278965,-978.0,0.00041203,60]
[404345962,1770070278974,-150.0,0.00041216,30]
[404345963,1770070278983,-360.58,0.00041223,30]
[404345964,1770070278992,-150.0,0.00041224,30]
[404345965,1770070279001,-150.0,0.00041224,30]
[404345966,1770070279010,-150.0,0.00041224,30]
[404345967,1770070279020,-157.74,0.00041224,30]
[404345968,1770070279029,-150.0,0.00041224,30]
[404345969,1770070279039,-469.55,0.00041224,30]
[404345970,1770070279049,-150.0,0.00041224,30]
[404345971,1770070279058,-1119.7,0.00041224,30]
[404345972,1770070279068,-469.55,0.00041224,30]
[404345973,1770070279078,-150.0,0.00041224,30]
[404345974,1770070279088,-351.58,0.00041224,30]
[404345975,1770070279098,-469.55,0.00041224,30]
[404345976,1770070279107,-150.0,0.00041224,30]
[404345977,1770070279118,-150.0,0.00041224,30]
[404345978,1770070279127,-2208.43546816,0.0004123,5]
[404345979,1770070279136,-150.0,0.00041234,30]
[404345980,1770070279146,-2000.0,0.00041234,31]
[404345981,1770070279155,-150.0,0.00041245,30]
[404345982,1770070279165,-150.0,0.00041263,2]
[404345983,1770070279175,-150.0,0.00041263,2]
[404345984,1770070279185,-150.0,0.00041263,2]
[404345985,1770070279195,-150.0,0.00041276,30]
[404345986,1770070279252,-150.0,0.00041276,30]
[404345987,1770070279261,-150.0,0.00041287,30]
[404345988,1770070279273,-383.99,0.000413,14]
[404345989,1770070279283,-4777.19,0.000413,30]
[404345990,1770070279292,-150.0,0.000413,30]
[404345991,1770070279303,-150.0,0.00041304,30]
[404345992,1770070279312,-150.0,0.00041316,30]
[404345993,1770070279321,-150.0,0.00041341,30]
[404345994,1770070279330,-150.0,0.0004135,30]
[404345995,1770070279339,-150.0,0.0004135,30]
[404345996,1770070279349,-150.0,0.00041394,30]
[404345997,1770070279358,-153.0,0.000414,120]
[404345998,1770070279369,-150.0,0.00041402,30]
[404345999,1770070279378,-150.0,0.00041402,30]
[404346000,1770070279387,-150.0,0.00041416,30]
[404346001,1770070279397,-150.0,0.00041419,30]
[404346002,1770070279406,-831.51979763,0.00041424,2]
[404346003,1770070279415,-1037.05004584,0.00041424,2]
[404346004,1770070279424,-163.0,0.00041425,90]
[404346005,1770070279433,-839.0,0.00041427,11]
[404346006,1770070279442,-150.0,0.00041441,30]
[404346007,1770070279451,-150.0,0.00041448,30]
[404346008,1770070279460,-163.404548,0.0004149,120]
[404346009,1770070279469,-151.0,0.0004149,60]
[404346010,1770070279478,-151.0,0.0004149,120]
[404346011,1770070279487,-550.0,0.00041492,10]
[404346012,1770070279496,-150.0,0.00041496,30]
[404346013,1770070279505,-250.0,0.000415,45]
[404346014,1770070279514,-250.0,0.000415,45]
[404346015,1770070279523,-250.0,0.000415,45]
[404346016,1770070279532,-250.0,0.000415,45]
[404346017,1770070279541,-269.223879,0.000415,120]
[404346018,1770070279551,-150.0,0.00041501,30]
[404346019,1770070279560,-150.0,0.00041516,30]
[404346020,1770070279569,-3915.21836276,0.00041518,9]
[404346021,1770070279579,-150.0,0.00041532,30]
[404346022,1770070279588,-150.0,0.00041537,30]
[404346023,1770070279597,-150.0,0.00041555,30]
[404346024,1770070279607,-150.0,0.00041559,30]
[404346025,1770070279616,-5033.57743733,0.0004156,3]
[404346026,1770070279625,-5000.0,0.0004156,6]
[404346027,1770070279634,-5000.0,0.0004156,6]
[404346028,1770070279643,-5000.0,0.0004156,7]
[404346029,1770070279652,-5000.0,0.0004156,8]
[404346030,1770070279661,-503.0,0.00041562,23]
[404346031,1770070279670,-150.0,0.00041578,30]
[404346032,1770070279680,-150.0,0.00041608,30]
[404346033,1770070279689,-150.0,0.0004161,2]
[404346034,1770070279698,-150.0,0.00041616,30]
[404346035,1770070279708,-5000.0,0.0004162,5]
[404346036,1770070279717,-799.0,0.00041644,120]
[404346037,1770070279726,-150.0,0.00041656,30]
[404346038,1770070279735,-150.0,0.00041662,30]
[404346039,1770070279744,-151.0,0.000417,120]
[404346040,1770070279754,-150.0,0.00041715,30]
[404346041,1770070279763,-150.0,0.00041715,30]
[404346042,1770070279772,-150.0,0.00041715,30]
[404346043,1770070279781,-150.0,0.00041715,30]
[404346044,1770070279791,-150.0,0.00041715,30]
[404346045,1770070279800,-150.0,0.00041715,30]
[404346046,1770070279810,-150.0,0.00041715,30]
[404346047,1770070279819,-150.0,0.00041715,30]
[404346048,1770070279829,-150.0,0.00041715,30]
[404346049,1770070279838,-150.0,0.00041715,30]
[404346050,1770070279847,-150.0,0.00041769,30]
[404346051,1770070279856,-150.0,0.00041775,30]
[404346052,1770070279866,-1012.32514535,0.00041799,30]
[404346053,1770070279875,-434.84584206,0.000418,120]
[404346054,1770070279884,-150.0,0.00041815,30]
[404346055,1770070279892,-150.0,0.00041823,30]
[404346056,1770070279902,-1000.0,0.00041834,2]
[404346057,1770070279911,-150.0,0.00041853,30]
[404346058,1770070279920,-150.0,0.00041872,30]
[404346059,1770070279929,-150.0,0.00041876,30]
[404346060,1770070279938,-150.0,0.00041893,30]
[404346061,1770070279947,-150.0,0.00041898,30]
[404346062,1770070279956,-728.517407,0.000419,14]
[404346063,1770070279965,-687.53,0.00041902,120]
[404346064,1770070279974,-300.030234,0.00041904,108]
[404346065,1770070279983,-150.0,0.00041915,30]
[404346066,1770070279993,-296.09604361,0.00041927,120]
[404346067,1770070280002,-150.0,0.0004193,30]
[404346068,1770070280011,-150.0,0.00041935,30]
[404346069,1770070280021,-150.0,0.00041983,30]
[404346070,1770070280030,-150.0,0.0004199,30]
[404346071,1770070280039,-500.0,0.00041993,60]
[404346072,1770070280048,-466.74254873,0.00041999,120]
[404346073,1770070280057,-200.0,0.00042,120]
[404346074,1770070280066,-868.09556468,0.00042,120]
[404346075,1770070280075,-158.27848251,0.00042,100]
[404346076,1770070280083,-484.45819231,0.00042,120]
[404346077,1770070280092,-161.98032218,0.00042,120]
[404346078,1770070280101,-7230.28,0.00042,2]
[404346079,1770070280110,-150.0,0.00042008,30]
[404346080,1770070280119,-150.0,0.00042008,30]
[404346081,1770070280128,-150.0,0.00042008,30]
[404346082,1770070280137,-150.0,0.00042008,30]
[404346083,1770070280147,-1362.24163322,0.0004201,2]
[404346084,1770070280157,-150.0,0.00042012,30]
[404346085,1770070280168,-150.0,0.00042015,30]
[404346086,1770070280179,-150.0,0.00042029,30]
[404346087,1770070280188,-150.0,0.00042029,30]
[404346088,1770070280198,-150.0,0.00042037,30]
[404346089,1770070280207,-650.0,0.0004204,10]
[404346090,1770070280216,-1233.02,0.00042045,30]
[404346091,1770070280226,-150.0,0.00042046,30]
[404346092,1770070280239,-172.53,0.00042046,30]
[404346093,1770070280250,-172.53,0.00042046,30]
[404346094,1770070280259,-173.97,0.00042046,30]
[404346095,1770070280268,-172.53,0.00042046,30]
[404346096,1770070280277,-500.0,0.00042055,30]
[404346097,1770070280288,-150.0,0.00042081,30]
[404346098,1770070280297,-150.0,0.00042081,30]
[404346099,1770070280307,-150.0,0.0004209,30]
[404346100,1770070280315,-582.0,0.000421,3]
[404346101,1770070280324,-153.0,0.000421,120]
[404346102,1770070280333,-150.0,0.00042115,30]
[404346103,1770070280345,-150.0,0.00042127,30]
[404346104,1770070280354,-150.0,0.00042131,30]
[404346105,1770070280363,-150.0,0.00042144,30]
[404346106,1770070280373,-150.0,0.00042155,30]
[404346107,1770070280381,-150.0,0.00042155,30]
[404346108,1770070280390,-150.0,0.00042186,30]
[404346109,1770070280399,-635.16,0.00042192,120]
[404346110,1770070280407,-150.0,0.00042197,30]
[404346111,1770070280417,-150.0,0.000422,2]
[404346112,1770070280426,-5625.23017437,0.000422,2]
[404346113,1770070280435,-2000.0,0.000422,2]
[404346114,1770070280444,-150.0,0.00042214,30]
[404346115,1770070280453,-150.0,0.0004225,30]
[404346116,1770070280462,-150.0,0.00042251,30]
[404346117,1770070280471,-150.0,0.00042264,30]
[404346118,1770070280481,-150.0,0.00042264,30]
[404346119,1770070280489,-307.33255675,0.00042267,60]
[404346120,1770070280498,-900.0,0.00042267,60]
[404346121,1770070280507,-150.0,0.00042305,30]
[404346122,1770070280516,-150.0,0.00042314,30]
[404346123,1770070280525,-150.0,0.00042343,30]
[404346124,1770070280534,-150.0,0.00042358,30]
[404346125,1770070280543,-150.0,0.00042368,30]
[404346126,1770070280551,-150.0,0.00042374,30]
[404346127,1770070280561,-503.0,0.00042397,24]
[404346128,1770070280570,-163.58,0.000424,14]
[404346129,1770070280579,-150.0,0.00042402,30]
[404346130,1770070280588,-150.0,0.00042412,30]
[404346131,1770070280598,-150.0,0.00042414,30]
[404346132,1770070280607,-150.0,0.00042442,10]
[404346133,1770070280617,-150.0,0.00042447,30]
[404346134,1770070280626,-150.0,0.00042447,30]
[404346135,1770070280635,-150.0,0.00042447,30]
[404346136,1770070280645,-150.0,0.00042447,30]
[404346137,1770070280654,-150.0,0.00042465,30]
[404346138,1770070280663,-150.0,0.00042487,30]
[404346139,1770070280672,-150.0,0.000425,30]
[404346140,1770070280681,-150.0,0.00042514,30]
[404346141,1770070280690,-150.0,0.00042519,30]
[404346142,1770070280699,-42546.74303907,0.00042531,2]
[404346143,1770070280707,-150.0,0.00042539,30]
[404346144,1770070280716,-500.0,0.00042541,60]
[404346145,1770070280725,-150.0,0.00042572,30]
[404346146,1770070280735,-750.0,0.00042588,10]
[404346147,1770070280744,-150.0,0.00042594,30]
[404346148,1770070280753,-150.0,0.00042594,30]
[404346149,1770070280762,-151.0,0.000426,120]
[404346150,1770070280772,-10000.0,0.000426,14]
[404346151,1770070280781,-150.0,0.00042606,30]
[404346152,1770070280791,-150.0,0.00042614,30]
[404346153,1770070280800,-150.0,0.00042626,30]
[404346154,1770070280809,-152.0,0.00042629,8]
[404346155,1770070280819,-150.0,0.0004263,30]
[404346156,1770070280828,-150.0,0.00042656,30]
[404346157,1770070280837,-150.0,0.00042656,30]
[404346158,1770070280846,-150.0,0.00042676,30]
[404346159,1770070280854,-150.0,0.00042679,30]
[404346160,1770070280863,-150.0,0.00042713,30]
[404346161,1770070280874,-150.0,0.00042724,30]
[404346162,1770070280882,-150.0,0.00042733,30]
[404346163,1770070280891,-1086.56,0.00042739,120]
[404346164,1770070280900,-799.0,0.0004274,120]
[404346165,1770070280909,-269.84281794,0.00042747,120]
[404346166,1770070280918,-300.0,0.00042783,30]
[404346167,1770070280927,-150.0,0.00042786,30]
[404346168,1770070280935,-153.0,0.000428,120]
[404346169,1770070280945,-150.0,0.00042813,30]
[404346170,1770070280954,-150.0,0.00042813,30]
[404346171,1770070280963,-150.0,0.00042813,30]
[404346172,1770070280972,-150.0,0.00042813,30]
[404346173,1770070280981,-150.0,0.00042813,30]
[404346174,1770070280990,-150.0,0.00042813,30]
[404346175,1770070281000,-900.0,0.00042815,60]
[404346176,1770070281009,-1000.0,0.00042834,2]
[404346177,1770070281019,-150.0,0.0004284,30]
[404346178,1770070281028,-150.0,0.00042843,30]
[404346179,1770070281037,-1069.09645631,0.0004287,120]
[404346180,1770070281046,-150.0,0.00042894,30]
[404346181,1770070281055,-150.0,0.00042913,30]
[404346182,1770070281063,-151.0,0.00042924,10]
[404346183,1770070281072,-151.0,0.00042924,10]
[404346184,1770070281081,-151.0,0.00042924,10]
[404346185,1770070281089,-151.0,0.00042924,10]
[404346186,1770070281098,-151.0,0.00042924,10]
[404346187,1770070281107,-151.0,0.00042924,10]
[404346188,1770070281116,-275.0,0.00042924,10]
[404346189,1770070281125,-151.0,0.00042924,10]
[404346190,1770070281133,-151.0,0.00042924,10]
[404346191,1770070281141,-151.0,0.00042924,10]
[404346192,1770070281150,-241.0,0.00042924,10]
[404346193,1770070281159,-150.0,0.00042947,30]
[404346194,1770070281168,-150.0,0.0004295,30]
[404346195,1770070281177,-150.0,0.00042962,30]
[404346196,1770070281186,-150.0,0.0004297,30]
[404346197,1770070281195,-150.0,0.00042996,30]
[404346198,1770070281203,-331.75092133,0.00042998,30]
[404346199,1770070281212,-22000.0,0.00043,8]
[404346200,1770070281222,-185.0,0.00043,2]
[404346201,1770070281233,-500.0,0.00043,2]
[404346202,1770070281244,-190.86203968,0.00043,2]
[404346203,1770070281254,-200000.0,0.00043,7]
[404346204,1770070281265,-500.0,0.00043,30]
[404346205,1770070281275,-100239.93369695,0.00043,2]
[404346206,1770070281287,-252.45112109,0.00043,120]
[404346207,1770070281299,-640.41445138,0.00043,120]
[404346208,1770070281311,-189.39359484,0.00043,120]
[404346209,1770070281322,-150.0,0.00043,30]
[404346210,1770070281332,-198.0,0.00043,30]
[404346211,1770070281342,-150.0,0.00043001,30]
[404346212,1770070281351,-150.0,0.00043013,30]
[404346213,1770070281362,-500.0,0.00043013,120]
[404346214,1770070281373,-500.0,0.00043013,120]
[404346215,1770070281382,-500.0,0.00043013,120]
[404346216,1770070281391,-500.0,0.00043013,120]
[404346217,1770070281400,-500.0,0.00043013,120]
[404346218,1770070281409,-500.0,0.00043013,120]
[404346219,1770070281419,-500.0,0.00043013,120]
[404346220,1770070281429,-500.0,0.00043013,120]
[404346221,1770070281438,-500.0,0.00043013,120]
[404346222,1770070281447,-500.0,0.00043013,120]
[404346223,1770070281457,-500.0,0.00043013,120]
[404346224,1770070281466,-500.0,0.00043013,120]
[404346225,1770070281474,-500.0,0.00043013,120]
[404346226,1770070281484,-397.38970779,0.00043013,120]
[404346227,1770070281494,-150.0,0.00043033,30]
[404346228,1770070281503,-150.0,0.00043033,30]
[404346229,1770070281513,-150.0,0.00043054,30]
[404346230,1770070281522,-150.0,0.0004308,30]
[404346231,1770070281531,-150.0,0.00043088,30]
[404346232,1770070281541,-500.0,0.00043089,60]
[404346233,1770070281550,-150.0,0.00043108,30]
[404346234,1770070281561,-150.0,0.00043113,30]
[404346235,1770070281571,-150.0,0.00043127,30]
[404346236,1770070281582,-850.0,0.00043136,10]
[404346237,1770070281591,-150.0,0.00043161,30]
[404346238,1770070281602,-150.0,0.00043179,30]
[404346239,1770070281613,-150.0,0.00043179,30]
[404346240,1770070281625,-515.85083038,0.00043186,2]
[404346241,1770070281634,-3367.84621236,0.00043187,2]
[404346242,1770070281645,-21864.14975436,0.00043187,2]
[404346243,1770070281654,-150.0,0.00043199,30]
[404346244,1770070281663,-150.0,0.000432,70]
[404346245,1770070281673,-282.5,0.000432,27]
[404346246,1770070281683,-150.0,0.000432,2]
[404346247,1770070281693,-1552.306258,0.000432,41]
[404346248,1770070281702,-150.0,0.00043207,30]
[404346249,1770070281711,-474.72785178,0.00043207,30]
[404346250,1770070281720,-213.13433283,0.00043207,30]
[404346251,1770070281730,-52572.95050809,0.0004321,120]
[404346252,1770070281740,-150.0,0.00043212,30]
[404346253,1770070281749,-150.0,0.00043215,30]
[404346254,1770070281759,-556.5898,0.0004322,30]
[404346255,1770070281770,-439.20299517,0.00043221,30]
[404346256,1770070281780,-150.0,0.00043225,30]
[404346257,1770070281790,-503.0,0.00043233,25]
[404346258,1770070281800,-150.0,0.00043252,30]
[404346259,1770070281809,-10000.0,0.0004326,21]
[404346260,1770070281819,-150.0,0.00043268,30]
[404346261,1770070281829,-150.0,0.00043284,30]
[404346262,1770070281838,-150.0,0.00043284,30]
[404346263,1770070281847,-200.0,0.00043286,120]
[404346264,1770070281857,-151.0,0.00043286,120]
[404346265,1770070281866,-151.0,0.00043286,120]
[404346266,1770070281876,-151.0,0.00043286,120]
[404346267,1770070281886,-151.0,0.00043286,120]
[404346268,1770070281895,-151.0,0.00043286,120]
[404346269,1770070281904,-261.47961,0.00043286,120]
[404346270,1770070281914,-256.604861,0.00043286,120]
[404346271,1770070281923,-256.604861,0.00043286,120]
[404346272,1770070281933,-256.604861,0.00043286,120]
[404346273,1770070281942,-256.604861,0.00043286,120]
[404346274,1770070281951,-151.0,0.00043286,120]
[404346275,1770070281960,-151.0,0.00043286,120]
[404346276,1770070281970,-215.356354,0.00043286,120]
[404346277,1770070281980,-215.356354,0.00043286,120]
[404346278,1770070281990,-215.356354,0.00043286,120]
[404346279,1770070281999,-215.356354,0.00043286,120]
[404346280,1770070282009,-198.575761,0.00043286,120]
[404346281,1770070282019,-198.575761,0.00043286,120]
[404346282,1770070282029,-198.575761,0.00043286,120]